[Event "FIN-ch Women 2017"]
[Site "Helsinki"]
[Date "2017.06.15"]
[Round "5"]
[White "Dannenberg, Alia"]
[Black "Norlamo, Sarabella"]
[Result "1/2-1/2"]
[ECO "C36"]
[WhiteElo "1984"]
[BlackElo "1640"]
[Annotator "NA"]
[PlyCount "117"]
[EventDate "2017.??.??"]
[EventType "tourn"]
[EventCountry "FIN"]
[SourceTitle "playchess.com"]
[Source "ChessBase"]
[SourceQuality "1"]
[TimeControl "40/5400+30:1800+30"]

{[%evp 8,117,0,0,7,4,63,58,70,60,54,46,44,32,45,31,74,55,81,62,68,56,74,20,36,25,22,29,34,26,32,10,27,26,32767,32767,32767,32767,32767,32767,32767,32767,32767,32767,32767,32767,32767,-17,-9,-37,32767,-99,-96,-106,-104,32767,-229,32767,-131,-232,32767,32767,32767,-351,-216,32767,32767,32767,32767,-362,32767,32767,-497,-394,-549,32767,-200,-154,-150,-379,32767,32767,-25,-8,0,32767,0,-43,-8,0,-43,0,32767,0,32767,-8,0,0,-49,0,32767,32767,32767,32767,0,0,0,32767,32767,32767,32767,0]} 1. e4 {[%emt 0:00:00]} e5 {[%emt 0:00:07]} 2. f4 {[%emt 0:00:00]} exf4 {[%emt 0:00:07]} 3. Nf3 {[%emt 0:00:00]} d5 {[%emt 0:00:10]} 4. exd5 {[%emt 0:00:00]} Qxd5 {[%emt 0:00:10]} 5. Nc3 {[%emt 0:02:18]} Qe6+ {[%emt 0:00:11]} 6. Be2 {[%emt 0:00:19]} c6 {[%emt 0:03:44] C36: King's Gambit Accepted: 3 Nf3 d5} (6... Bd6 7. O-O Ne7 8. d4 Nf5 9. Ng5 Qf6 10. Nce4 Qxd4+ 11. Qxd4 Nxd4 12. Bc4 Be6 13. Nxe6 fxe6 14. c3 {1-0 (71) Martin Sanchez,C (2349)-Sardella,A (2344) ICCF email 2009}) 7. O-O {[%emt 0:03:36]} Bd6 {[%emt 0:00:18]} 8. d4 {[%emt 0:06:13]} Nf6 {[%emt 0:15:20]} 9. Bd3 {[%emt 0:07:17]} (9. Ne5 $5) 9... O-O {[%emt 0:05:37]} 10. Ng5 {[%emt 0:10:08]} Qe7 $146 {[%emt 0:13:34]} ({Predecessor:} 10... Qg4 11. Qxg4 Bxg4 12. Bxf4 Bxf4 13. Rxf4 h6 14. Nge4 {½-½ (39) Kunos,Z (1831)-Gomori,M (1921) Hungary 2015}) 11. Nge4 {[%emt 0:03:31]} Bc7 {[%emt 0:10:11]} 12. Bxf4 {[%emt 0:09:44]} Nxe4 {[%emt 0:00:18]} 13. Nxe4 {[%emt 0:08:52]} Bxf4 {[%emt 0:00:19]} 14. Rxf4 {[%emt 0:00:02]} f5 {[%emt 0:02:17]} 15. Bc4+ {[%emt 0:03:00]} Be6 {[%emt 0:00:24]} 16. Bxe6+ {[%emt 0:01:09]} Qxe6 {[%emt 0:00:02]} 17. Nc5 {[%emt 0:01:18]} Qe3+ {[%emt 0:00:20]} 18. Rf2 {[%emt 0:00:17]} b6 $1 {[%emt 0:09:15]} 19. Qd3 {[%emt 0:01:50]} Qxd3 {[%emt 0:03:28]} 20. Nxd3 {[%emt 0:00:02]} Nd7 {[%emt 0:03:48]} 21. Re1 {[%emt 0:01:21]} g6 {[%emt 0:01:19]} 22. Rfe2 {[%emt 0:02:09]} Rac8 {[%emt 0:07:04]} 23. Re7 {[%emt 0:01:01]} Rf7 {[%emt 0:01:15]} 24. Rxf7 {[%emt 0:04:27]} Kxf7 {[%emt 0:00:03]} 25. Ne5+ {[%emt 0:00:32]} Nxe5 {[%emt 0:00:21]} 26. Rxe5 {[%emt 0:00:02]} Kf6 {[%emt 0:01:36]} 27. Re3 {[%emt 0:04:33]} Rd8 {[%emt 0:00:43]} 28. Rd3 {[%emt 0:01:14]} (28. Rc3 $5 {[%cal Rc3c6]}) 28... c5 {[%emt 0:03:43]} 29. d5 {[%emt 0:04:59]} ({White should try} 29. c3 $1 $15) 29... c4 {[%emt 0:00:46]} 30. Rc3 {[%emt 0:06:03]} b5 {[%emt 0:11:36]} 31. Ra3 {[%emt 0:01:30]} Rxd5 {[%emt 0:00:56]} 32. Rxa7 {[%emt 0:00:18]} Rd1+ {[%emt 0:00:23]} 33. Kf2 {[%emt 0:00:02]} Rd2+ {[%emt 0:00:09]} 34. Kf3 {[%emt 0:06:50]} Rxc2 {[%emt 0:00:10]} 35. a4 {[%emt 0:00:23]} Rxb2 {[%emt 0:02:07]} 36. axb5 {[%emt 0:00:20]} Rxb5 {[%emt 0:00:03]} 37. Rc7 {[%emt 0:00:29]} Rb3+ {[%emt 0:00:18]} 38. Ke2 {[%emt 0:01:31]} c3 {[%emt 0:03:21]} 39. Kd3 {[%emt 0:02:52]} h6 {[%emt 0:01:40]} 40. h4 {[%emt 0:00:00]} Rb4 {[%emt 0:02:34]} 41. Rc6+ {[%emt 0:01:46]} Kf7 {[%emt 0:02:56]} 42. Rc7+ {[%emt 0:07:37]} Ke6 {[%emt 0:00:04]} 43. Rc6+ {[%emt 0:02:04]} Kd5 {[%emt 0:01:43]} 44. Rxg6 {[%emt 0:00:53]} Rxh4 {[%emt 0:01:41]} 45. Kxc3 {[%emt 0:00:48]} Ke4 {[%emt 0:01:46]} 46. Kd2 {[%emt 0:01:17]} Rg4 {[%emt 0:05:15]} 47. Rxh6 {[%emt 0:00:19]} Rxg2+ {[%emt 0:00:02]} 48. Ke1 {[%emt 0:00:20]} Kf3 {[%emt 0:01:54]} 49. Kf1 {[%emt 0:01:39]} f4 {[%emt 0:03:25]} 50. Ra6 {[%emt 0:02:51]} Rf2+ {[%emt 0:01:57]} 51. Kg1 $1 {[%emt 0:02:49]} Re2 {[%emt 0:00:22]} (51... Rb2 $5) 52. Kf1 {[%emt 0:01:44]} Re5 {[%emt 0:00:40]} 53. Rh6 {[%emt 0:05:00]} Ke3 {[%emt 0:02:11]} 54. Rh3+ {[%emt 0:02:59]} f3 {[%emt 0:00:25]} 55. Rh8 {[%emt 0:00:27]} Re4 {[%emt 0:06:11]} 56. Rf8 {[%emt 0:00:56]} Rd4 {[%emt 0:01:58]} 57. Re8+ {[%emt 0:00:23]} Kd3 {[%emt 0:02:16]} 58. Kf2 {[%emt 0:00:42]} Rf4 {[%emt 0:00:37]} 59. Re3+ $11 {[%emt 0:00:32]} 1/2-1/2

[Event "FIN-ch Women 2017"]
[Site "Helsinki"]
[Date "2017.06.15"]
[Round "5"]
[White "Al Najar, Huda"]
[Black "Rinne, Heini"]
[Result "0-1"]
[ECO "B11"]
[WhiteElo "1747"]
[BlackElo "1746"]
[Annotator "NA"]
[PlyCount "132"]
[EventDate "2017.??.??"]
[EventType "tourn"]
[EventCountry "FIN"]
[SourceTitle "playchess.com"]
[Source "ChessBase"]
[SourceQuality "1"]
[TimeControl "40/5400+30:1800+30"]

1. e4 {[%emt 0:00:00]} c6 {[%emt 0:00:42]} 2. Nf3 {[%emt 0:00:00]} d5 {[%emt 0:04:58]} 3. Nc3 {[%emt 0:00:23]} e6 {[%emt 0:07:42]} 4. a3 {[%emt 0:04:54]} dxe4 {[%emt 0:09:39]} 5. Nxe4 {[%emt 0:00:03]} Be7 {[%emt 0:03:37]} 6. d4 {[%emt 0:03:12]} Nd7 {[%emt 0:03:15]} 7. Bd3 {[%emt 0:02:23]} Ngf6 {[%emt 0:01:28]} 8. Ng3 {[%emt 0:07:58]} Qc7 {[%emt 0:05:56]} 9. Qe2 {[%emt 0:04:06]} O-O {[%emt 0:05:45]} 10. O-O {[%emt 0:05:07]} Re8 {[%emt 0:06:19]} 11. Ne5 {[%emt 0:06:49]} Bd6 {[%emt 0:10:11]} 12. f4 {[%emt 0:04:58]} c5 {[%emt 0:02:29]} 13. c3 {[%emt 0:00:26]} cxd4 {[%emt 0:06:08]} 14. cxd4 {[%emt 0:00:11]} Qb6 {[%emt 0:01:03]} 15. Qf2 {[%emt 0:06:01]} Bf8 {[%emt 0:11:14]} 16. Kh1 {[%emt 0:04:13]} g6 {[%emt 0:04:20]} 17. Ne4 {[%emt 0:05:44]} Nxe4 {[%emt 0:00:38]} 18. Bxe4 {[%emt 0:00:23]} Nf6 {[%emt 0:00:51]} 19. Bf3 {[%emt 0:03:31]} Rd8 {[%emt 0:01:17]} 20. b4 {[%emt 0:03:58]} a5 {[%emt 0:04:18]} 21. bxa5 {[%emt 0:03:48]} Qxa5 {[%emt 0:02:03]} 22. Bb2 {[%emt 0:00:53]} Nd5 {[%emt 0:00:21]} 23. Nc4 {[%emt 0:02:06]} Qa7 {[%emt 0:01:54]} 24. g3 {[%emt 0:03:14]} b5 {[%emt 0:00:28]} 25. Ne5 {[%emt 0:00:46]} Bb7 {[%emt 0:00:11]} 26. Rfc1 {[%emt 0:00:39]} Qb6 {[%emt 0:01:19]} 27. Nd3 {[%emt 0:02:26]} Nf6 {[%emt 0:01:54]} 28. Nc5 {[%emt 0:00:30]} Bxf3+ {[%emt 0:00:07]} 29. Qxf3 {[%emt 0:00:28]} Nd5 {[%emt 0:00:12]} 30. Nd3 {[%emt 0:05:57]} Rac8 {[%emt 0:01:04]} 31. Ne5 {[%emt 0:00:43]} Kg7 {[%emt 0:03:37]} 32. h4 {[%emt 0:05:12]} h5 {[%emt 0:00:41]} 33. g4 {[%emt 0:01:04]} hxg4 {[%emt 0:00:04]} 34. Nxg4 {[%emt 0:02:33]} Be7 {[%emt 0:00:16]} 35. Qf2 {[%emt 0:00:53]} Rxc1+ {[%emt 0:00:21]} 36. Rxc1 {[%emt 0:01:55]} Rh8 {[%emt 0:00:09]} 37. Kg2 {[%emt 0:05:33]} Rxh4 {[%emt 0:00:34]} 38. Nh2 {[%emt 0:04:04]} Nxf4+ {[%emt 0:00:29]} 39. Kf1 {[%emt 0:01:13]} Qb7 {[%emt 0:00:25]} 40. Nf3 {[%emt 0:00:00]} Rh1+ {[%emt 0:00:33]} 41. Ng1 {[%emt 0:00:39]} Qe4 {[%emt 0:20:13]} 42. Rc3 {[%emt 0:07:08]} Bh4 {[%emt 0:02:50]} 43. Qd2 {[%emt 0:02:58]} Ne2 {[%emt 0:04:43]} 44. Re3 {[%emt 0:00:58]} Rxg1+ {[%emt 0:01:56]} 45. Kxe2 {[%emt 0:00:29]} Rg2+ {[%emt 0:00:12]} 46. Kf1 {[%emt 0:00:21]} Rxd2 {[%emt 0:01:38]} 47. Rxe4 {[%emt 0:00:42]} Bf6 {[%emt 0:00:20]} 48. Bc3 {[%emt 0:02:38]} Rd3 {[%emt 0:00:18]} 49. Bb2 {[%emt 0:00:14]} Rb3 {[%emt 0:00:28]} 50. Re2 {[%emt 0:01:33]} g5 {[%emt 0:00:54]} 51. Ke1 {[%emt 0:01:16]} Kg6 {[%emt 0:00:19]} 52. Rd2 {[%emt 0:00:27]} Be7 {[%emt 0:01:12]} 53. Kd1 {[%emt 0:00:18]} Bxa3 {[%emt 0:00:23]} 54. Bxa3 {[%emt 0:00:20]} Rxa3 {[%emt 0:00:07]} 55. d5 {[%emt 0:00:25]} exd5 {[%emt 0:00:26]} 56. Rxd5 {[%emt 0:00:02]} Rf3 {[%emt 0:01:24]} 57. Rxb5 {[%emt 0:00:22]} g4 {[%emt 0:00:14]} 58. Ke2 {[%emt 0:00:19]} f5 {[%emt 0:00:41]} 59. Rb8 {[%emt 0:00:51]} Kg5 {[%emt 0:00:20]} 60. Rg8+ {[%emt 0:00:12]} Kh4 {[%emt 0:00:15]} 61. Rh8+ {[%emt 0:01:08]} Kg3 {[%emt 0:00:08]} 62. Rf8 {[%emt 0:01:58]} Kg2 {[%emt 0:00:30]} 63. Rg8 {[%emt 0:00:40]} g3 {[%emt 0:00:21]} 64. Rh8 {[%emt 0:00:48]} Rf2+ {[%emt 0:00:43]} 65. Ke1 {[%emt 0:00:30]} f4 {[%emt 0:00:28]} 66. Rf8 {[%emt 0:01:07]} f3 {[%emt 0:00:30]} 0-1

[Event "FIN-ch Women 2017"]
[Site "Helsinki"]
[Date "2017.06.15"]
[Round "5"]
[White "Al Argha, Fatima"]
[Black "Nazarova, Anastasia"]
[Result "0-1"]
[ECO "B26"]
[WhiteElo "1334"]
[BlackElo "2038"]
[Annotator "NA"]
[PlyCount "70"]
[EventDate "2017.??.??"]
[EventType "tourn"]
[EventCountry "FIN"]
[SourceTitle "playchess.com"]
[Source "ChessBase"]
[SourceQuality "1"]
[TimeControl "40/5400+30:1800+30"]

{[%evp 8,69,0,0,15,4,2,-1,6,-38,-17,-29,-25,-27,0,-12,45,13,14,6,0,0,0,-44,-31,-40,-23,-32,-31,-75,-83,-75,-61,-77,-70,-89,-62,-222,-143,-149,32767,32767,32767,32767,32767,32767,32767,32767,-141,32767,32767,32767,32767,32767,32767,32767,32767,32767,32767,32767,32767,-29997,-29998,-29999]} 1. e4 {[%emt 0:00:00]} c5 {[%emt 0:00:02]} 2. Nc3 {[%emt 0:00:00]} Nc6 {[%emt 0:00:04]} 3. g3 {[%emt 0:00:13]} g6 {[%emt 0:00:04]} 4. Bg2 {[%emt 0:00:25]} Bg7 {[%emt 0:00:05]} 5. d3 {[%emt 0:00:22]} Rb8 {[%emt 0:00:21]} 6. Be3 {[%emt 0:01:00] LiveBook: 171 Games} d6 {[%emt 0:00:06]} 7. Qd2 {[%emt 0:01:17]} b5 {[%emt 0:01:14]} 8. Rb1 {[%emt 0:03:42] B26: Closed Sicilian: 3 g3, lines with early Be3} (8. Nge2 Nd4 9. O-O e6 10. Nc1 Ne7 11. Nd1 O-O 12. c3 Ndc6 13. Bh6 d5 14. Bxg7 Kxg7 15. exd5 Nxd5 16. Ne3 Nde7 17. a4 a6 18. axb5 axb5 19. Nb3 Qd6 {½-½ (62) Hera,I (2609)-Demuth,A (2527) Bad Ragaz 2017}) 8... e6 {[%emt 0:04:16]} (8... b4 $5 {[%cal Rb4c3]} 9. Nce2 Nf6 $15) 9. f4 {[%emt 0:05:27]} Nge7 {[%emt 0:00:12]} 10. Nf3 {[%emt 0:02:36]} Nd4 {[%emt 0:02:17]} 11. O-O {[%emt 0:02:07]} Nec6 {[%emt 0:08:44] [#]} ({Better is} 11... O-O $11) 12. Ne2 {[%emt 0:02:29]} (12. e5 $1 $16) 12... Nxf3+ {[%emt 0:05:30]} 13. Bxf3 {[%emt 0:00:52]} Nd4 {[%emt 0:00:38]} 14. Bg2 {[%emt 0:00:41]} b4 {[%emt 0:01:13]} 15. h3 $146 {[%emt 0:20:38]} ({Predecessor:} 15. f5 exf5 16. Nxd4 cxd4 17. Bh6 O-O {½-½ (16) Brueggemann,J (2360)-Baumbach,F (2460) Goerlitz 1972}) 15... O-O {[%emt 0:08:20]} 16. Kh2 {[%emt 0:06:52]} Nxe2 {[%emt 0:05:08]} 17. Qxe2 {[%emt 0:00:13]} Qa5 {[%emt 0:00:06]} 18. Bf2 {[%emt 0:04:17]} (18. Qd2 $11) 18... Qxa2 {[%emt 0:09:22]} 19. e5 {[%emt 0:05:44]} Qa6 {[%emt 0:00:08]} 20. Ra1 {[%emt 0:00:54]} Qb6 {[%emt 0:00:23]} 21. Qe3 {[%emt 0:06:53]} Rd8 {[%emt 0:03:34]} 22. exd6 $2 {[%emt 0:02:11]} (22. d4 $15) 22... Bd4 {[%emt 0:00:14]} 23. Qc1 {[%emt 0:03:04]} Rxd6 {[%emt 0:02:38]} 24. Ra2 {[%emt 0:02:28]} Bb7 {[%emt 0:01:37]} 25. Qa1 {[%emt 0:07:54]} Bxg2 {[%emt 0:00:24]} 26. Kxg2 Rb7 {[%emt 0:00:10]} 27. Bxd4 {[%emt 0:01:46]} cxd4 {[%emt 0:00:52]} ({But not} 27... Rxd4 28. Ra6 $15) 28. Rb1 {[%emt 0:00:37]} Qc6+ {[%emt 0:00:34]} 29. Kg1 {[%emt 0:00:15]} Qxc2 {[%emt 0:00:42]} 30. Rc1 {[%emt 0:01:09]} Qxd3 {[%emt 0:00:24]} 31. Rc8+ {[%emt 0:00:37]} Kg7 {[%emt 0:00:04]} 32. Rxa7 {[%emt 0:00:29]} Rxa7 {[%emt 0:00:44]} 33. Qxa7 {[%emt 0:00:08]} Ra6 {[%emt 0:00:12]} 34. Qb8 Ra1+ {[%emt 0:00:09]} 35. Kh2 {[%emt 0:02:15]} Qe2# {[%emt 0:00:12]} 0-1

[Event "FIN-ch Women 2017"]
[Site "Helsinki"]
[Date "2017.06.16"]
[Round "6"]
[White "Dannenberg, Alia"]
[Black "Al Najar, Huda"]
[Result "1-0"]
[ECO "C29"]
[WhiteElo "1984"]
[BlackElo "1747"]
[Annotator "NA RC"]
[PlyCount "85"]
[EventDate "2017.??.??"]
[EventType "tourn"]
[EventCountry "FIN"]
[SourceTitle "playchess.com"]
[Source "ChessBase"]
[SourceQuality "1"]
[TimeControl "40/5400+30:1800+30"]

1. e4 {[%emt 0:00:00]} e5 {[%emt 0:00:02]} 2. Nc3 {[%emt 0:00:00]} Nf6 {[%emt 0:00:03]} 3. f4 {[%emt 0:00:00]} d5 {[%emt 0:00:04]} 4. exd5 {[%emt 0:00:00]} exf4 {[%emt 0:00:25]} 5. Bb5+ {[%emt 0:00:08]} c6 {[%emt 0:05:59] C29: Vienna Game: 2...Nf6 3 f4} 6. dxc6 {[%emt 0:00:09]} bxc6 {[%emt 0:02:11]} 7. Bc4 {[%emt 0:01:21]} Bc5 $146 {[%emt 0:08:21]} ({Predecessor:} 7... Bd6 8. Qe2+ Kf8 9. d4 Nbd7 10. Nf3 Nb6 11. Ne5 Bxe5 12. dxe5 Bg4 13. Qf2 Nxc4 {½-½ (40) Shirazi,K (2408)-Bojkov,D (2520) Sautron 2007}) 8. Qe2+ {[%emt 0:02:18]} Qe7 {[%emt 0:02:48]} (8... Be6 $11) 9. Qxe7+ {[%emt 0:01:05]} Bxe7 {[%emt 0:02:08]} 10. d4 {[%emt 0:02:01]} Bf5 {[%emt 0:06:07]} 11. Bb3 {[%emt 0:03:30]} Bd6 {[%emt 0:02:44]} 12. Nge2 {[%emt 0:03:19]} O-O {[%emt 0:08:34]} 13. O-O {[%emt 0:04:31]} g5 {[%emt 0:03:13]} 14. h4 {[%emt 0:00:39]} h6 {[%emt 0:01:22] [#]} 15. Nxf4 $1 {[%emt 0:08:48]} gxf4 {[%emt 0:08:48]} 16. Bxf4 {[%emt 0:00:09]} Bxf4 {[%emt 0:02:04]} 17. Rxf4 {[%emt 0:00:09]} Bxc2 {[%emt 0:01:44]} 18. Bxc2 {[%emt 0:01:51]} Nbd7 {[%emt 0:00:28]} 19. Raf1 {[%emt 0:01:16]} Kg7 {[%emt 0:00:42]} 20. Ne4 {[%emt 0:01:04]} Nd5 {[%emt 0:01:42]} 21. R4f3 {[%emt 0:03:27]} Rab8 {[%emt 0:09:28]} 22. b3 {[%emt 0:05:27]} Rb4 {[%emt 0:01:26]} 23. Nd6 {[%emt 0:01:48]} N7f6 {[%emt 0:00:24]} 24. Nf5+ {[%emt 0:01:46]} Kh7 {[%emt 0:11:23]} 25. Ne7+ {[%emt 0:09:46]} Kg7 {[%emt 0:02:32]} 26. Nxc6 {[%emt 0:01:18]} Rb6 {[%emt 0:01:35]} 27. Ne5 {[%emt 0:00:46]} Rc8 {[%emt 0:06:16]} 28. Bd3 {[%emt 0:05:13]} Rc3 {[%emt 0:02:47]} 29. Bc4 {[%emt 0:01:13]} Rxf3 {[%emt 0:01:53]} 30. Rxf3 {[%emt 0:00:28]} ({Weaker is} 30. Nxf3 Ne3 $18) 30... Rb7 {[%emt 0:02:15]} 31. g4 {[%emt 0:02:59]} Nb6 {[%emt 0:01:25]} 32. Bxf7 {[%emt 0:04:54]} Nxg4 {[%emt 0:00:24]} 33. Rg3 {[%emt 0:02:35]} Rxf7 {[%emt 0:02:42]} 34. Rxg4+ {[%emt 0:01:06]} Kf8 {[%emt 0:00:18]} 35. Nxf7 {[%emt 0:00:24]} Kxf7 {[%emt 0:00:01]} 36. Kf2 {[%emt 0:01:42]} Kf6 {[%emt 0:00:23]} 37. Kf3 {[%emt 0:01:02]} Nd5 {[%emt 0:00:20]} 38. h5 {[%emt 0:01:07]} Ne7 {[%emt 0:00:25]} 39. Ke4 {[%emt 0:00:22]} Ke6 {[%emt 0:00:51]} 40. Rg7 {[%emt 0:00:00]} a5 {[%emt 0:01:05]} 41. Rxe7+ {[%emt 0:01:30]} Kxe7 {[%emt 0:00:02]} 42. Ke5 {[%emt 0:00:16]} Kd7 {[%emt 0:03:20]} 43. d5 {[%emt 0:00:27]} 1-0

[Event "FIN-ch Women 2017"]
[Site "Helsinki"]
[Date "2017.06.16"]
[Round "6"]
[White "Rinne, Heini"]
[Black "Al Argha, Fatima"]
[Result "1-0"]
[ECO "A90"]
[WhiteElo "1746"]
[BlackElo "1334"]
[Annotator "NA RC"]
[PlyCount "117"]
[EventDate "2017.??.??"]
[EventType "tourn"]
[EventCountry "FIN"]
[SourceTitle "playchess.com"]
[Source "ChessBase"]
[SourceQuality "1"]
[TimeControl "40/5400+30:1800+30"]

1. d4 {[%emt 0:00:00]} f5 {[%emt 0:00:16]} 2. c4 {[%emt 0:02:43]} Nf6 {[%emt 0:00:18]} 3. g3 {[%emt 0:01:39]} e6 {[%emt 0:02:56]} 4. Bg2 {[%emt 0:02:11]} d5 {[%emt 0:04:04]} 5. Nh3 {[%emt 0:03:58]} c6 {[%emt 0:01:32]} 6. O-O {[%emt 0:09:13]} Bd6 {[%emt 0:02:41]} 7. Bf4 {[%emt 0:05:40]} O-O {[%emt 0:01:31]} 8. Bxd6 {[%emt 0:07:16]} Qxd6 {[%emt 0:00:09]} 9. Nd2 {[%emt 0:02:10]} h6 {[%emt 0:02:23]} 10. Nf4 {[%emt 0:17:05]} Kf7 {[%emt 0:14:21]} 11. Nf3 {[%emt 0:02:18]} Nbd7 {[%emt 0:05:26]} 12. c5 {[%emt 0:06:00]} Qc7 {[%emt 0:00:58]} 13. Nd3 {[%emt 0:00:38]} g5 {[%emt 0:03:57]} 14. e3 {[%emt 0:04:15]} b6 {[%emt 0:03:23]} 15. Qc2 Ba6 {[%emt 0:02:00]} 16. Nfe5+ {[%emt 0:05:39]} Nxe5 {[%emt 0:02:07]} 17. Nxe5+ {[%emt 0:00:53]} Ke8 {[%emt 0:00:33]} 18. cxb6 {[%emt 0:03:38]} Qxb6 {[%emt 0:02:01]} 19. Rfc1 {[%emt 0:00:41]} Rc8 {[%emt 0:01:28]} 20. Qc5 {[%emt 0:07:12]} Bb7 {[%emt 0:04:53]} 21. Qd6 {[%emt 0:04:23]} c5 {[%emt 0:09:52]} 22. dxc5 {[%emt 0:00:23]} Qxd6 {[%emt 0:00:25]} 23. cxd6 {[%emt 0:00:06]} Nd7 {[%emt 0:15:22]} 24. Ng6 {[%emt 0:06:14]} Rf7 {[%emt 0:01:05]} 25. Ne7 {[%emt 0:01:24]} Rc5 {[%emt 0:00:42]} 26. Rxc5 {[%emt 0:00:37]} Nxc5 {[%emt 0:00:05]} 27. Rc1 {[%emt 0:00:40]} Na6 {[%emt 0:00:33]} 28. Nc6 {[%emt 0:03:26]} Bxc6 {[%emt 0:02:29]} 29. Rxc6 {[%emt 0:00:06]} Nb4 {[%emt 0:00:08]} 30. Rc8+ {[%emt 0:00:41]} Kd7 {[%emt 0:00:07]} 31. Rc7+ {[%emt 0:00:04]} Ke8 {[%emt 0:00:12]} 32. Rc8+ {[%emt 0:02:52]} Kd7 {[%emt 0:00:19]} 33. Rc3 {[%emt 0:01:07]} Kxd6 {[%emt 0:00:51]} 34. a3 {[%emt 0:00:15]} Na2 {[%emt 0:00:38]} 35. Rc8 {[%emt 0:00:44]} Rc7 {[%emt 0:00:59]} 36. Rh8 {[%emt 0:00:33]} Rc1+ {[%emt 0:03:39]} 37. Bf1 {[%emt 0:00:03]} Rb1 {[%emt 0:00:46]} 38. Rxh6 {[%emt 0:00:29]} Rxb2 {[%emt 0:00:14]} 39. Rh7 {[%emt 0:00:10]} Nc3 {[%emt 0:01:46]} 40. Rxa7 {[%emt 0:00:00]} Ne4 {[%emt 0:00:54]} 41. Ra6+ {[%emt 0:16:19]} Kd7 {[%emt 0:03:31]} 42. h4 {[%emt 0:07:49]} gxh4 {[%emt 0:02:11]} 43. gxh4 {[%emt 0:00:06]} Rb8 {[%emt 0:00:11]} 44. Ra7+ {[%emt 0:01:22]} Kd6 {[%emt 0:00:45]} 45. h5 {[%emt 0:01:35]} Nf6 {[%emt 0:02:01]} 46. Be2 {[%emt 0:01:57]} e5 {[%emt 0:01:41]} 47. Ra6+ {[%emt 0:00:52]} Ke7 {[%emt 0:00:13]} 48. a4 {[%emt 0:00:21]} d4 {[%emt 0:01:33]} 49. exd4 {[%emt 0:02:58]} exd4 {[%emt 0:00:05]} 50. h6 {[%emt 0:00:28]} Kf7 {[%emt 0:00:40]} 51. Bd3 {[%emt 0:01:38]} f4 {[%emt 0:00:25]} 52. h7 {[%emt 0:00:55]} Kg7 {[%emt 0:00:23]} 53. Ra7+ {[%emt 0:00:10]} Kh6 {[%emt 0:00:22]} 54. Rf7 {[%emt 0:00:58]} Kg5 {[%emt 0:04:26]} 55. Rg7+ {[%emt 0:00:31]} Kh4 {[%emt 0:00:34]} 56. Kg2 {[%emt 0:01:58]} Rf8 {[%emt 0:01:16]} 57. Kf3 {[%emt 0:00:15]} Kh5 {[%emt 0:00:21]} 58. a5 {[%emt 0:00:18]} Kh6 {[%emt 0:03:15]} 59. Rg6+ {[%emt 0:00:11]} 1-0

[Event "FIN-ch Women 2017"]
[Site "Helsinki"]
[Date "2017.06.16"]
[Round "6"]
[White "Norlamo, Sarabella"]
[Black "Nazarova, Anastasia"]
[Result "1/2-1/2"]
[ECO "D04"]
[WhiteElo "1640"]
[BlackElo "2038"]
[Annotator "NA RC"]
[PlyCount "92"]
[EventDate "2017.??.??"]
[EventType "tourn"]
[EventCountry "FIN"]
[SourceTitle "playchess.com"]
[Source "ChessBase"]
[SourceQuality "1"]
[TimeControl "40/5400+30:1800+30"]

{[%evp 8,92,-3,0,0,-2,0,32767,32767,32767,32767,32767,32767,32767,32767,32767,32767,22,38,16,12,21,31,16,48,46,70,32767,32767,32767,32767,87,32767,32767,32767,32767,32767,32767,13,0,4,12,64,-68,-71,-454,21,32767,32767,32767,32767,32767,32767,32767,32767,32767,32767,32767,5,32767,0,0,0,0,0,0,0,-11,-12,-11,12,6,12,9,9,0,32767,0,4,0,0,0,2,0,3,2,4]} 1. d4 {[%emt 0:00:00]} d5 {[%emt 0:00:03]} 2. Nf3 {[%emt 0:00:00]} Nf6 {[%emt 0:00:04]} 3. e3 {[%emt 0:00:00]} c5 {[%emt 0:00:09]} 4. b3 {[%emt 0:00:06]} cxd4 {[%emt 0:00:07]} 5. exd4 {[%emt 0:00:05]} Nc6 {[%emt 0:00:03]} 6. Bb2 {[%emt 0:00:26] LiveBook: 34 Games} Bg4 {[%emt 0:00:05]} 7. Be2 {[%emt 0:00:29]} e6 {[%emt 0:00:04] D04: Colle System} 8. Nbd2 {[%emt 0:00:24]} Bd6 {[%emt 0:00:23]} (8... Be7 9. Ne5 Bxe2 10. Qxe2 Qc7 11. O-O O-O 12. c4 dxc4 13. bxc4 Nxe5 14. dxe5 {½-½ (41) Stefanova,A (2486)-Kosintseva,T (2496) Beijing 2013}) 9. O-O {[%emt 0:00:11]} O-O {[%emt 0:00:13]} 10. h3 {[%emt 0:01:18]} Bf5 {[%emt 0:00:11]} 11. Nh4 {[%emt 0:00:15]} Bg6 {[%emt 0:01:09]} 12. Nxg6 {[%emt 0:03:06]} hxg6 {[%emt 0:00:56]} 13. Nf3 $146 {[%emt 0:00:41]} ({Predecessor:} 13. a3 Rc8 14. Nf3 Qc7 15. Bd3 {½-½ (37) Myagmarsuren,L (2176)-Kraidman,Y (2307) Halle 2004}) 13... Qc7 {[%emt 0:02:00]} 14. Re1 {[%emt 0:00:15]} Rac8 {[%emt 0:00:57]} 15. a3 {[%emt 0:05:17]} Ne7 {[%emt 0:08:42]} 16. Bd3 {[%emt 0:03:46]} Nh5 {[%emt 0:02:34]} 17. c4 {[%emt 0:16:04]} Qd8 {[%emt 0:16:22]} 18. Ne5 {[%emt 0:09:52]} Nc6 {[%emt 0:20:15]} 19. Nxc6 {[%emt 0:23:40]} Rxc6 {[%emt 0:02:36]} 20. cxd5 {[%emt 0:02:04]} exd5 {[%emt 0:00:29]} 21. Qf3 {[%emt 0:01:42]} Bb8 {[%emt 0:08:02]} 22. Rad1 {[%emt 0:03:25]} Rf6 {[%emt 0:01:44]} 23. Qe3 {[%emt 0:01:31]} Nf4 {[%emt 0:06:47]} 24. Bf1 {[%emt 0:00:56]} Ne6 {[%emt 0:02:27]} (24... Qd7 $11) 25. Qc3 {[%emt 0:00:53]} (25. g3 $14) 25... Ng5 {[%emt 0:02:27]} 26. Bd3 $2 {[%emt 0:03:21]} (26. Qc2 $17 {is more resistant.}) 26... Rf4 $2 {[%emt 0:05:33]} (26... Rf3 $19 27. Kf1 {[#]} Nxh3 $1 {[%mdl 512]} 28. gxf3 Qh4 $19) 27. Bc1 {[%emt 0:02:54]} Rh4 {[%emt 0:01:07]} 28. Bxg5 {[%emt 0:02:35]} Qxg5 {[%emt 0:00:08]} 29. Bf1 {[%emt 0:01:04]} Rf4 {[%emt 0:03:17]} 30. Qe3 {[%emt 0:01:29]} Qf6 {[%emt 0:00:48]} 31. Be2 {[%emt 0:02:03]} Re4 {[%emt 0:02:58]} 32. Qc3 {[%emt 0:02:24]} Qd6 {[%emt 0:03:44]} 33. g3 {[%emt 0:01:06]} Qxa3 {[%emt 0:00:44]} 34. Bf3 {[%emt 0:01:17]} Rxe1+ 35. Rxe1 {[%emt 0:00:02]} Qd6 {[%emt 0:00:23]} 36. Qa5 {[%emt 0:01:17]} Rd8 {[%emt 0:03:08]} 37. Qxd5 {[%emt 0:01:14]} Qxd5 {[%emt 0:05:03]} 38. Bxd5 {[%emt 0:00:03]} Kf8 {[%emt 0:02:53]} (38... Bxg3 $5 39. Bxb7 Bc7 $11) 39. Bxb7 {[%emt 0:00:43]} Rxd4 {[%emt 0:00:05]} 40. Bc6 {[%emt 0:00:00]} Rd8 {[%emt 0:00:06]} 41. Kg2 {[%emt 0:03:52]} g5 {[%emt 0:02:06]} 42. Bb5 {[%emt 0:03:29]} f6 {[%emt 0:00:38]} 43. Re2 {[%emt 0:00:12]} Be5 {[%emt 0:00:30]} 44. Ra2 {[%emt 0:00:52]} Rb8 {[%emt 0:01:21]} 45. Bc4 {[%emt 0:00:54]} Bd4 {[%emt 0:00:18]} 46. Rd2 {[%emt 0:00:36]} Rd8 $11 {[%emt 0:00:17]} 1/2-1/2